Cogmind - Beta 10.2 --- EXPLORER MODE // 2021.08.25 @ 22:02:24 // Winter2019/RPGLIKE Player: UdenTiso Result: Destroyed by P-80 Master with Gamma Rifle Performance ------------- Evolutions (7) 3500 Regions Visited (13) 2600 Robots Destroyed (133) 665 Value Destroyed (5751) 5751 Prototype IDs (4) 80 Alien Tech Used (0) 0 Bonus (1744) 1744 TOTAL SCORE: 14340 Bonus ------- High Alert Combat Kills 1670 Follower Combat Kills 93 Friendly Fire -19 Cogmind --------- Core Integrity 0/1300 Matter 435/900 Energy 600/600 System Corruption 3% Temperature Cool (0) Movement Hovering (43) Location -3/Research Parts ------- > --- POWER (4) -------- Angular Momentum Engine Angular Momentum Engine > --- PROPULSION (6) --- Antigrav System Antigrav System Antigrav System Improved Antigrav System Improved Gyrokinetic Inverter Improved Gyrokinetic Inverter > --- UTILITY (10) ----- Improved Cooling System Matter Compressor Advanced Weight Redist. System Advanced Weight Redist. System Long-range Sensor Array Melee Analysis Suite Armor Integrity Analyzer Improved Maneuvering Thrusters Improved Maneuvering Thrusters > --- WEAPON (6) ------- Tesla Rifle Hardcell Cannon Mini Grenade Launcher Long-range Missile Launcher Greatsword > --- INVENTORY (4) ---- Antigrav System Improved Remote Datajack Great Axe Peak State ------------ > --- POWER ------------ Ion Engine Angular Momentum Engine Angular Momentum Engine Antimatter Reactor > --- PROPULSION ------- Antigrav System Antigrav System Antigrav System Antigrav System Antigrav System Improved Antigrav System > --- UTILITY ---------- Improved Cooling System Matter Compressor Advanced Weight Redist. System Advanced Weight Redist. System Long-range Sensor Array Melee Analysis Suite Armor Integrity Analyzer Improved Maneuvering Thrusters Improved Maneuvering Thrusters Improved Medium Armor Plating > --- WEAPON ----------- Tesla Rifle Hardcell Cannon Long-range Missile Launcher Micro-nuke Launcher Greatsword > --- INVENTORY -------- Heavy Assault Rifle Mini Grenade Launcher Improved Remote Datajack Great Axe [Rating: 127] Favorites ----------- Power Angular Momentum Engine Engine Angular Momentum Engine Reactor Antimatter Reactor Propulsion Airjet Treads Light Treads Leg Improved Aluminum Leg Hover Unit Airjet Utility Advanced Weight Redist. System Device Advanced Weight Redist. System Storage Matter Compressor Processor Armor Integrity Analyzer Protection Improved Propulsion Shielding Weapon Long-range Missile Launcher Energy Gun Tesla Rifle Energy Cannon Advanced Beam Cannon Ballistic Gun Heavy Assault Rifle Ballistic Cannon Hardcell Cannon Launcher Long-range Missile Launcher Special Weapon Plasma Cutter Impact Weapon Heavy Flail Slashing Weapon Greatsword Build | -11 -10 -10 -9 -8 -7 -6 -6 -6 -5 -4 -4 -4 -3 ------- Run | Scr Mat Min Mat Mat Fac Fac Low Low Fac Fac Upp Upp Res Slots Evolved 22 | 5 . 2 3 . 4 2 . . 2 4 . . . Power 3 | . . . 1 . . 1 . . . 1 . . . Propulsion 5 | 3 . . . . 1 . . . . 1 . . . Utility 9 | 1 . 1 . . 3 1 . . 1 2 . . . Weapon 5 | 1 . 1 2 . . . . . 1 . . . . Parts Attached 86 | 5 12 3 17 1 15 4 . . 5 19 . . 5 Power 9 | . . . 3 . 2 2 . . . 2 . . . Engine 7 | . . . 3 . 2 2 . . . . . . . Core . | . . . . . . . . . . . . . . Reactor 2 | . . . . . . . . . . 2 . . . Propulsion 34 | 3 10 . 4 . 3 . . . . 11 . . 3 Treads 2 | 2 . . . . . . . . . . . . . Leg 11 | 1 10 . . . . . . . . . . . . Wheel . | . . . . . . . . . . . . . . Hover 21 | . . . 4 . 3 . . . . 11 . . 3 Flight . | . . . . . . . . . . . . . . Utility 18 | 1 1 1 1 1 7 1 . . 1 4 . . . Device 11 | . . . . . 7 . . . 1 3 . . . Storage 1 | . . . . . . 1 . . . . . . . Processor 3 | . 1 1 1 . . . . . . . . . . Hackware . | . . . . . . . . . . . . . . Protection 3 | 1 . . . 1 . . . . . 1 . . . Artifact . | . . . . . . . . . . . . . . Weapon 25 | 1 1 2 9 . 3 1 . . 4 2 . . 2 Energy Gun 7 | 1 1 . 4 . . . . . 1 . . . . Energy Cannon 3 | . . . 1 . 1 . . . 1 . . . . Ballistic Gun 2 | . . . 2 . . . . . . . . . . Ballistic Cannon 2 | . . . . . . . . . . 1 . . 1 Launcher 6 | . . 1 1 . 1 1 . . . 1 . . 1 Special Weapon 2 | . . 1 . . 1 . . . . . . . . Impact Weapon 2 | . . . 1 . . . . . 1 . . . . Slashing Weapon 1 | . . . . . . . . . 1 . . . . Piercing Weapon . | . . . . . . . . . . . . . . Special Melee Weapon . | . . . . . . . . . . . . . . Unidentified Prototypes 4 | . . . 3 . 1 . . . . . . . . Parts Lost 3 | . . . 2 . . . . . . 1 . . . Power . | . . . . . . . . . . . . . . Propulsion . | . . . . . . . . . . . . . . Utility 3 | . . . 2 . . . . . . 1 . . . Weapon . | . . . . . . . . . . . . . . Highest Loss Streak 2 | . . . 2 . . . . . . 1 . . . Average Slot Usage (%) 94 | . 96 99 98 97 92 96 100 100 95 92 96 . 89 Engine 11 | . 11 10 9 14 11 11 15 15 13 11 11 . 9 Leg 9 | . 36 43 15 . . . . . . . . . . Hover 18 | . . . 16 28 25 25 25 25 22 22 23 . 22 Device 12 | . . . . . 11 15 15 15 18 21 23 . 23 Storage 2 | . . . . . . 4 5 5 4 3 3 . 3 Processor 9 | . 8 11 16 14 11 10 10 10 9 7 7 . 7 Protection 5 | . 13 10 7 4 5 5 5 5 4 2 3 . 1 Energy Gun 5 | . 12 19 7 . . . . . 3 3 3 . 3 Energy Cannon 1 | . . . 1 7 5 5 5 5 3 2 . . . Ballistic Gun 3 | . 8 . 5 7 5 5 5 5 . . . . . Launcher 7 | . . . 9 14 11 10 10 10 9 7 7 . 7 Impact Weapon 1 | . . . 5 7 2 . . . . . . . . Slashing Weapon 1 | . . . . . . . . . 3 3 3 . 3 Naked Turns . | . . . . . . . . . . . . . . Heaviest Build 106 | 9 9 11 27 26 28 59 59 59 66 106 106 106 106 Greatest Support 122 | 20 52 52 52 36 68 59 59 59 68 120 120 120 122 Greatest Overweight (x) 1 | . . . 1 . . 1 . . . 1 . . . Average Overweight (x) . | . . . . . . . . . . . . . . Largest Inventory Capacity 4 | 4 4 4 4 4 4 4 4 4 4 4 4 4 4 Average Capacity 4 | 4 4 4 4 4 4 4 4 4 4 4 4 4 4 Most Carried 4 | 4 4 4 4 2 4 4 4 4 4 4 4 4 4 Average Carried 3 | 1 3 3 3 2 2 3 4 4 2 3 4 4 2 Final Capacity 4 | 4 4 4 4 4 4 4 4 4 4 4 4 4 4 Final Carried 4 | 4 3 2 2 2 3 4 4 4 3 4 4 4 3 Class Distribution -------------------- 44% | Generator-Gladiator 24% | Hacker-Gunner 23% | Hacker-Mutant 5% | Generator-Gunner Dominant Class ---------------- Hacker-Mutant | -10/Materials Hacker-Mutant | -10/Mines Hacker-Gunner | -9/Materials Hacker-Gunner | -8/Materials Hacker-Gunner | -7/Factory Hacker-Gunner | -6/Factory Generator-Gunner | -6/Lower Caves Generator-Mutant | -6/Lower Caves Generator-Gladiator | -5/Factory Generator-Gladiator | -4/Factory Generator-Gladiator | -4/Upper Caves Generator-Gladiator | -4/Upper Caves Generator-Gladiator | -3/Research Resources | -11 -10 -10 -9 -8 -7 -6 -6 -6 -5 -4 -4 -4 -3 ----------- Run | Scr Mat Min Mat Mat Fac Fac Low Low Fac Fac Upp Upp Res Matter Collected 3382 | 200 169 18 380 157 206 151 26 128 96 1351 44 . 456 Remotely . | . . . . . . . . . . . . . . Salvage Created 4351 | . 399 . 669 198 213 59 172 77 173 1529 37 . 825 Parts 258 | . 26 . 51 29 8 7 4 3 5 87 5 . 33 Haulers Intercepted 4 | . . . 2 1 . . . . . . . . 1 Recyclers Shooed 7 | . 2 . 1 . 1 . . . . 1 . . 2 Parts Field Recycled . | . . . . . . . . . . . . . . Retrieved Matter . | . . . . . . . . . . . . . . Parts Self-Destructed . | . . . . . . . . . . . . . . Prevented . | . . . . . . . . . . . . . . Kills | -11 -10 -10 -9 -8 -7 -6 -6 -6 -5 -4 -4 -4 -3 ------- Run | Scr Mat Min Mat Mat Fac Fac Low Low Fac Fac Upp Upp Res Combat Hostiles Destroyed 98 | . 7 . 17 7 2 2 3 1 3 34 4 . 18 Melee 22 | . . . . . . . . . . 18 . . 4 Guns 15 | . 7 . 4 1 . . 1 . . . . . 2 Cannons 14 | . . . . 1 2 1 . . 1 6 . . 3 AOE 47 | . . . 13 5 . 1 2 1 2 10 4 . 9 Classes Destroyed 15 | . 3 . 6 1 . . . . 1 3 . . 1 Worker 4 | . . . 1 . . . . . . 2 . . 1 Builder 5 | . . . . 1 . . . . . 1 . . 3 Tunneler 4 | . . . 1 1 1 . . . . . . . 1 Hauler 4 | . . . 2 1 . . . . . . . . 1 Recycler 6 | . 2 . 2 . 1 . . . . 1 . . . Operator 3 | . . . 1 . . 1 . . . 1 . . . Watcher 9 | . . . 2 1 . 1 . . 1 1 . . 3 Swarmer 23 | . 4 . 5 4 . 2 . . . 3 4 . 1 Saboteur 1 | . . . . . . . . . . . . . 1 Grunt 34 | . 3 . 6 2 . . 3 . . 12 . . 8 Brawler 2 | . . . . . . . . . . 1 . . 1 Duelist 2 | . . . . . . . . . . 1 . . 1 Sentry 15 | . . . 6 1 2 . . 1 2 3 . . . Hunter 8 | . . . . . . . . . . 6 . . 2 Programmer 13 | . . . . . . . . . 1 8 . . 4 Best Kill Streak 13 | . 4 . 11 7 2 2 3 1 2 9 4 . 13 Combat Bots Only 8 | . 4 . 8 4 1 2 3 1 2 4 4 . 7 Max Kills in Single Turn 4 | . 2 . 3 4 1 2 2 1 1 3 4 . 4 Gunslinging 1 | . 1 . . . . . . . . . . . . Exploded 4 | . . . 2 2 . 1 2 1 1 3 4 . 4 Melee 1 | . . . . . . . . . . 1 . . 1 Uniques/NPCs Destroyed . | . . . . . . . . . . . . . . Combat | -11 -10 -10 -9 -8 -7 -6 -6 -6 -5 -4 -4 -4 -3 -------- Run | Scr Mat Min Mat Mat Fac Fac Low Low Fac Fac Upp Upp Res Damage Taken 4444 | . 115 22 593 193 205 21 33 16 75 1491 28 . 1652 Core 3282 | . 72 16 428 134 140 16 24 9 61 1089 21 . 1272 Absorbed by Shields . | . . . . . . . . . . . . . . Redirected to Core 2892 | . 72 16 359 90 111 16 24 9 47 970 21 . 1157 Core Remaining (%) 67 | 100 . 100 45 45 35 . . 58 72 . . 81 . Volleys Fired 150 | . 22 7 25 12 11 4 4 1 10 28 1 . 25 Largest 4 | . 2 2 4 4 4 4 4 4 4 4 2 . 4 Hottest 225 | . 80 140 170 151 151 164 164 164 206 225 92 . 222 Shots Fired 422 | . 40 8 80 34 25 13 13 4 29 84 2 . 90 Gun 177 | . 40 1 44 12 8 4 4 1 10 28 . . 25 Cannon 94 | . . . 5 12 8 4 4 1 10 28 . . 22 Launcher 140 | . . . 30 10 6 5 5 2 9 28 2 . 43 Special 11 | . . 7 1 . 3 . . . . . . . . Kinetic 98 | . 17 . 23 12 8 4 4 1 . 7 . . 22 Thermal 121 | . 23 8 27 12 11 4 4 1 10 21 . . . Explosive 140 | . . . 30 10 6 5 5 2 9 28 2 . 43 Electromagnetic 63 | . . . . . . . . . 10 28 . . 25 Robot Hit Streak 43 | . 11 2 14 15 26 34 43 4 15 25 5 . 31 Robot Miss Streak 2 | . 1 . 2 2 . . 1 . 2 2 . . 2 Penetration Max . | . . . . . . . . . . . . . . Secondary Targets 2 | . 2 . . . . . . . . . . . . Max Gunslinging Chain 1 | . 1 . . . . . . . . . . . . Shots Hit Robots 385 | . 31 2 53 28 17 8 10 3 24 121 1 . 87 Core Hits 272 | . 18 . 46 17 9 7 9 2 10 72 3 . 79 Critical Hits 10 | . . . . 3 . 1 . . 1 5 . . . Critical Kills 4 | . . . . 1 . 1 . . 1 1 . . . Critical Parts Destroyed 6 | . . . . 2 . . . . . 4 . . . Melee Attacks 86 | . . . . 2 . . . . 1 60 . . 23 Impact 2 | . . . . 2 . . . . . . . . . Slashing 84 | . . . . . . . . . 1 60 . . 23 Piercing . | . . . . . . . . . . . . . . Sneak Attacks 5 | . . . . . . . . . . 4 . . 1 Combat Hostiles . | . . . . . . . . . . . . . . Follow-up Attacks . | . . . . . . . . . . . . . . Damage Inflicted 18718 | . 314 36 2003 862 368 534 507 50 549 6943 358 . 6194 Guns 2207 | . 299 12 398 151 95 27 46 12 191 535 . . 441 Cannons 1823 | . . . 40 226 162 81 83 20 168 488 . . 555 Explosions 9411 | . . . 1565 433 58 426 378 18 190 2072 358 . 3913 Melee 5185 | . . . . 52 . . . . . 3848 . . 1285 Ramming 68 | . 15 . . . 53 . . . . . . . . Kinetic 1395 | . 110 . 217 151 95 27 46 12 . 182 . . 555 Thermal 1820 | . 189 36 549 226 162 81 83 20 168 306 . . . Explosive 9083 | . . . 1237 433 58 426 378 18 190 2072 358 . 3913 Electromagnetic 1167 | . . . . . . . . . 191 535 . . 441 Impact 52 | . . . . 52 . . . . . . . . . Slashing 5133 | . . . . . . . . . . 3848 . . 1285 Piercing . | . . . . . . . . . . . . . . Highest Corruption 3 | . . . 2 . . . . . . 3 3 3 3 Average Corruption 2 | . . . 2 . . . . . . 2 3 3 2 Corruption Purged . | . . . . . . . . . . . . . . Effects 17 | . . . 1 . . . . . . 7 . . 9 Message Errors 6 | . . . . . . . . . . 2 . . 4 Matter Fused 2 | . . . . . . . . . . . . . 2 Heat Flow Errors 1 | . . . . . . . . . . 1 . . . Data Loss (minor) 3 | . . . . . . . . . . 1 . . 2 Targeting Errors 5 | . . . 1 . . . . . . 3 . . 1 Overload Shots . | . . . . . . . . . . . . . . Overflow Damage 1545 | . . . 241 31 . 43 20 . . 862 46 . 302 Projectiles 24 | . . . . . . . 12 . . . . . 12 Explosions 711 | . . . 241 31 . 43 8 . . 88 46 . 254 Melee 810 | . . . . . . . . . . 774 . . 36 Knockbacks 9 | . . . . 2 3 . . . . 2 . . 2 Impact 5 | . . . . 2 3 . . . . . . . . Kinetic 4 | . . . . . . . . . . 2 . . 2 Secondary . | . . . . . . . . . . . . . . Self-Inflicted Damage 322 | . 1 . 151 46 52 . . . . 12 . . 60 Shots 18 | . . . 9 2 1 . . . . 2 . . 4 Rammed 6 | . 2 . . . 4 . . . . . . . . Targets Rammed 8 | . 4 . . . 4 . . . . . . . . Kicked 2 | . 2 . . . . . . . . . . . . Crushed . | . . . . . . . . . . . . . . Highest Temperature 327 | . 157 226 126 155 102 . 2 3 23 226 . . 327 Average Temperature 58 | . 43 108 32 45 28 . 2 3 8 42 . . 110 Received Heat Transfer 1080 | . 84 18 120 72 84 . 27 6 18 384 . . 267 Siege Activations . | . . . . . . . . . . . . . . Robots Corrupted . | . . . . . . . . . . . . . . Combat Hostiles . | . . . . . . . . . . . . . . Parts Fried 3 | . . . . . . . . . 1 1 . . 1 Impact Corruptions . | . . . . . . . . . . . . . . Robots Melted . | . . . . . . . . . . . . . . Combat Hostiles . | . . . . . . . . . . . . . . Parts Melted 1 | . . . . . . . . . . 1 . . . Heat Transferred 3061 | . 425 75 674 407 296 148 148 37 296 555 . . . Parts Sabotaged 4 | . . . . . . . . . . . . . 4 Parts Stolen . | . . . . . . . . . . . . . . Parts Stripped . | . . . . . . . . . . . . . . Power Chain Reactions 1 | . . . . 1 . . . . . . . . . Missiles Intercepted . | . . . . . . . . . . . . . . Alert | -11 -10 -10 -9 -8 -7 -6 -6 -6 -5 -4 -4 -4 -3 ------- Run | Scr Mat Min Mat Mat Fac Fac Low Low Fac Fac Upp Upp Res Peak Influence 1454 | . 195 66 581 413 261 213 . . 548 1454 . . 1198 Initial 219 | . . 1 18 106 136 93 . . 61 196 . . 219 Average 448 | . 90 7 219 235 199 124 . . 183 933 . . 748 Maximum Alert Level 4 | . . . 2 2 1 1 . . 2 4 . . 4 Low Security (%) 42 | 100 100 100 41 56 45 86 . . 66 7 . . . Level 1 19 | . . . 49 33 54 13 . . 25 2 . . 24 Level 2 9 | . . . 8 9 . . . . 7 15 . . 18 Level 3 16 | . . . . . . . . . . 36 . . 44 Level 4 11 | . . . . . . . . . . 38 . . 11 Level 5 . | . . . . . . . . . . . . . . High Security . | . . . . . . . . . . . . . . Max Security . | . . . . . . . . . . . . . . Squads Dispatched 24 | . . . 1 . 1 1 . . 2 12 . . 7 Investigation . | . . . . . . . . . . . . . . Extermination 4 | . . . . . 1 . . . . 3 . . . Reinforcement 10 | . . . 1 . . 1 . . . 3 . . 5 Assault 6 | . . . . . . . . . 1 3 . . 2 Garrison 4 | . . . . . . . . . 1 3 . . . Intercept . | . . . . . . . . . . . . . . Construction Impeded 3 | . . . . . . 1 . . . . . . 2 Haulers Reinforced 1 | . . . . . . . . . . . . . 1 Stealth | -11 -10 -10 -9 -8 -7 -6 -6 -6 -5 -4 -4 -4 -3 --------- Run | Scr Mat Min Mat Mat Fac Fac Low Low Fac Fac Upp Upp Res Distress Signals 6 | . 1 . 1 1 . . . . . 1 . . 2 Communications Jammed . | . . . . . . . . . . . . . . Distress Signals . | . . . . . . . . . . . . . . Times Spotted 164 | . 10 2 22 10 2 4 3 1 3 54 4 . 49 Peak Tracking Total 8 | . 3 1 6 5 1 3 2 1 1 6 4 . 8 Tactical Retreats 13 | . . . . . . . . . . 6 . . 7 Traps | -11 -10 -10 -9 -8 -7 -6 -6 -6 -5 -4 -4 -4 -3 ------- Run | Scr Mat Min Mat Mat Fac Fac Low Low Fac Fac Upp Upp Res Traps Triggered 5 | . 2 . . 1 2 . . . . . . . . Indirectly 1 | . . . . 1 . . . . . . . . . Trap Hack Attempts . | . . . . . . . . . . . . . . Triggered . | . . . . . . . . . . . . . . Disarmed . | . . . . . . . . . . . . . . Reprogrammed 3 | . . . 3 . . . . . . . . . . Reused 1 | . . . 1 . . . . . . . . . . Traps Extracted . | . . . . . . . . . . . . . . Installed . | . . . . . . . . . . . . . . Triggered 1 | . . . 1 . . . . . . . . . . Machines | -11 -10 -10 -9 -8 -7 -6 -6 -6 -5 -4 -4 -4 -3 ---------- Run | Scr Mat Min Mat Mat Fac Fac Low Low Fac Fac Upp Upp Res Machines Disabled 18 | . . . 7 1 . . . . 4 3 . . 3 Max in Single Turn 3 | . . . 2 1 . . . . 3 1 . . 1 Garrison Access 1 | . . . . . . . . . 1 . . . . Machines Sabotaged . | . . . . . . . . . . . . . . Garrisons Compromised . | . . . . . . . . . . . . . . Overloaded Fab Kills . | . . . . . . . . . . . . . . Fab Network Shutdowns . | . . . . . . . . . . . . . . Hacking | -11 -10 -10 -9 -8 -7 -6 -6 -6 -5 -4 -4 -4 -3 --------- Run | Scr Mat Min Mat Mat Fac Fac Low Low Fac Fac Upp Upp Res Machines Accessed 8 | . 1 . 5 . 1 . . 1 . . . . . Terminals 5 | . 1 . 4 . . . . . . . . . . Fabricators . | . . . . . . . . . . . . . . Repair Stations . | . . . . . . . . . . . . . . Recycling Units 1 | . . . 1 . . . . . . . . . . Scanalyzers 1 | . . . . . 1 . . . . . . . . Garrison Access . | . . . . . . . . . . . . . . Total Hacks 21 | . 5 . 13 . 2 . . 1 . . . . . Successful 19 | . 5 . 11 . 2 . . 1 . . . . . Failed 2 | . . . 2 . . . . . . . . . . Catastrophic . | . . . . . . . . . . . . . . Database Lockouts . | . . . . . . . . . . . . . . Manual . | . . . . . . . . . . . . . . Terminals 14 | . 5 . 9 . . . . . . . . . . Fabricators . | . . . . . . . . . . . . . . Repair Stations . | . . . . . . . . . . . . . . Recycling Units 4 | . . . 4 . . . . . . . . . . Scanalyzers 2 | . . . . . 2 . . . . . . . . Garrison Access . | . . . . . . . . . . . . . . Terminal Hacks 13 | . 5 . 7 . . . . 1 . . . . . Record 4 | . 2 . 1 . . . . 1 . . . . . Alert Level 1 | . . . 1 . . . . . . . . . . Locate Traps 1 | . . . 1 . . . . . . . . . . Reprogram Traps 1 | . . . 1 . . . . . . . . . . Dispatch Records 2 | . 1 . 1 . . . . . . . . . . Hauler Manifests 1 | . . . 1 . . . . . . . . . . Registered Components 1 | . 1 . . . . . . . . . . . . Zone Layout 2 | . 1 . 1 . . . . . . . . . . Fabricator Hacks . | . . . . . . . . . . . . . . Repair Station Hacks . | . . . . . . . . . . . . . . Recycling Unit Hacks 4 | . . . 4 . . . . . . . . . . Recycle Component 1 | . . . 1 . . . . . . . . . . Process 1 | . . . 1 . . . . . . . . . . Retrieve Matter 2 | . . . 2 . . . . . . . . . . Scanalyzer 2 | . . . . . 2 . . . . . . . . Insert Component 1 | . . . . . 1 . . . . . . . . Analyze 1 | . . . . . 1 . . . . . . . . Garrison Access Hacks . | . . . . . . . . . . . . . . Unauthorized Hacks . | . . . . . . . . . . . . . . Terminals . | . . . . . . . . . . . . . . Fabricators . | . . . . . . . . . . . . . . Repair Stations . | . . . . . . . . . . . . . . Recycling Units . | . . . . . . . . . . . . . . Scanalyzers . | . . . . . . . . . . . . . . Garrison Access . | . . . . . . . . . . . . . . Data Cores Recovered 1 | . . . 1 . . . . . . . . . . Used . | . . . . . . . . . . . . . . Hacking Detections 5 | . 1 . 3 . 1 . . . . . . . . Full Trace Events . | . . . . . . . . . . . . . . Feedback Events . | . . . . . . . . . . . . . . Feedback Blocked . | . . . . . . . . . . . . . . Robot Schematics Acquired . | . . . . . . . . . . . . . . Robots Built . | . . . . . . . . . . . . . . Matter . | . . . . . . . . . . . . . . Time . | . . . . . . . . . . . . . . Total Robot Build Rating . | . . . . . . . . . . . . . . Part Schematics Acquired 1 | . . . . . 1 . . . . . . . . Parts Built . | . . . . . . . . . . . . . . Matter . | . . . . . . . . . . . . . . Time . | . . . . . . . . . . . . . . Total Part Build Rating . | . . . . . . . . . . . . . . Parts Repaired . | . . . . . . . . . . . . . . Time . | . . . . . . . . . . . . . . Parts Recycled 1 | . . . 1 . . . . . . . . . . Recycled Matter 49 | . . . 49 . . . . . . . . . . Retrieved Matter 49 | . . . 49 . . . . . . . . . . Retrieved Components . | . . . . . . . . . . . . . . Parts Scanalyzed 1 | . . . . . 1 . . . . . . . . Part Schematics Acquired 1 | . . . . . 1 . . . . . . . . Parts Damaged . | . . . . . . . . . . . . . . Bothacking | -11 -10 -10 -9 -8 -7 -6 -6 -6 -5 -4 -4 -4 -3 ------------ Run | Scr Mat Min Mat Mat Fac Fac Low Low Fac Fac Upp Upp Res Used RIF Installer . | . . . . . . . . . . . . . . Robots Hacked . | . . . . . . . . . . . . . . Non-combat . | . . . . . . . . . . . . . . Combat . | . . . . . . . . . . . . . . Robot Hacks Applied . | . . . . . . . . . . . . . . Relay Couplers Released 1 | . . . . . . . . . 1 . . . . Machine Destruction 1 | . . . . . . . . . 1 . . . . Robots Rewired . | . . . . . . . . . . . . . . Allies Hacked . | . . . . . . . . . . . . . . Hacks Repelled . | . . . . . . . . . . . . . . Allies | -11 -10 -10 -9 -8 -7 -6 -6 -6 -5 -4 -4 -4 -3 -------- Run | Scr Mat Min Mat Mat Fac Fac Low Low Fac Fac Upp Upp Res Total Allies 1 | . . 1 . . . . . . . . . . . Largest Group 1 | . . 1 1 . . . . . . . . . . Highest-Rated Group 31 | . . 31 31 . . . . . . . . . . Highest-Rated Ally 31 | . . 31 31 . . . . . . . . . . Total Orders . | . . . . . . . . . . . . . . Ally Attacks 8 | . . 4 4 . . . . . . . . . . Total Damage 126 | . . 62 64 . . . . . . . . . . Kills 3 | . . 2 1 . . . . . . . . . . Allies Corrupted . | . . . . . . . . . . . . . . Allies Melted . | . . . . . . . . . . . . . . Intel | -11 -10 -10 -9 -8 -7 -6 -6 -6 -5 -4 -4 -4 -3 ------- Run | Scr Mat Min Mat Mat Fac Fac Low Low Fac Fac Upp Upp Res Robot Analysis Total . | . . . . . . . . . . . . . . Derelict Logs Recovered 2 | . . . . . . . 1 1 . . . . . Drone Launches . | . . . . . . . . . . . . . . Drone Recoveries . | . . . . . . . . . . . . . . Exploration | -11 -10 -10 -9 -8 -7 -6 -6 -6 -5 -4 -4 -4 -3 ------------- Run | Scr Mat Min Mat Mat Fac Fac Low Low Fac Fac Upp Upp Res Turns Passed 3553 | 28 427 234 478 145 260 152 140 85 136 832 112 7 517 Spaces Moved 4074 | 12 287 162 476 156 329 219 278 140 180 841 271 16 707 Core . | . . . . . . . . . . . . . . Treads 6 | 6 . . . . . . . . . . . . . Legs 598 | 6 287 162 143 . . . . . . . . . . Wheels . | . . . . . . . . . . . . . . Hover 3470 | . . . 333 156 329 219 278 140 180 841 271 16 707 Flight . | . . . . . . . . . . . . . . Fastest Speed 40 | 120 120 120 48 48 44 44 44 44 44 40 40 40 40 Average Speed 56 | 140 120 120 69 48 45 45 44 44 44 50 40 40 40 Slowest Speed 160 | 160 120 120 120 48 48 104 44 44 44 104 40 40 44 Overloaded Moves . | . . . . . . . . . . . . . . Propulsion Burnouts . | . . . . . . . . . . . . . . Robots Hopped . | . . . . . . . . . . . . . . Cave-ins Triggered 1 | . . . 1 . . . . . . . . . . Exploration Rate (%) 24 | 1 52 39 56 26 7 7 46 19 4 22 42 3 25 Regions Visited 13 Branch Regions 5 Pre-discovered Areas . | . . . . . . . . . . . . . . Known Exits Taken 13 | 1 1 1 1 1 1 1 1 1 1 1 1 1 . Unknown Exits Taken . | . . . . . . . . . . . . . . Scrap Searched 6 | . . . . . . . 2 2 . . 2 . . Spaces Dug 51 | . . 4 20 . . . . . . 7 . . 20 Terrain Destroyed 1321 | . . 5 293 89 43 55 39 20 126 304 52 . 295 Melee . | . . . . . . . . . . . . . . Projectile 17 | . . 5 1 . . . . . . 4 . . 7 AOE 1304 | . . . 292 89 43 55 39 20 126 300 52 . 288 Terrain Rammed . | . . . . . . . . . . . . . . Walls Destroyed . | . . . . . . . . . . . . . . Machines Disabled . | . . . . . . . . . . . . . . Actions | -11 -10 -10 -9 -8 -7 -6 -6 -6 -5 -4 -4 -4 -3 --------- Run | Scr Mat Min Mat Mat Fac Fac Low Low Fac Fac Upp Upp Res Total 4793 | 20 331 180 563 194 413 261 285 160 211 1065 271 15 824 Wait 238 | . . . 20 17 38 29 4 14 6 55 . . 55 Move 4061 | 11 286 161 475 155 328 218 277 139 179 840 270 15 707 Hop . | . . . . . . . . . . . . . . Pick Up 22 | 4 . 3 8 . 5 1 . . . 1 . . . Fast Attach 46 | 5 9 . 8 1 10 3 . . 2 7 . . 1 Attach 16 | . 1 3 5 . 3 . . . 3 . . . 1 Detach 3 | . . . . . 1 . . . 2 . . . . Swap 24 | . 2 . 4 . 2 1 . . . 12 . . 3 Drop 49 | . 7 2 13 . 7 2 . . 2 14 . . 2 Fire 150 | . 22 7 25 12 11 4 4 1 10 28 1 . 25 Melee 86 | . . . . 2 . . . . 1 60 . . 23 Ram 4 | . . . . . 4 . . . . . . . . Kick 4 | . 4 . . . . . . . . . . . . Crush . | . . . . . . . . . . . . . . Escape Stasis . | . . . . . . . . . . . . . . Rewire . | . . . . . . . . . . . . . . Trap . | . . . . . . . . . . . . . . Miscellaneous 90 | . . 4 5 7 4 3 . 6 6 48 . . 7 Route ------- -11/Scrapyard -10/Materials (discovered 3 exits: *Mat x2 / *Min) -10/Mines (discovered 2 exits: *Mat x2) -9/Materials (discovered 2 exits: *Mat / *Min) -8/Materials -7/Factory -6/Factory -6/Lower Caves -6/Lower Caves -5/Factory -4/Factory -4/Upper Caves -4/Upper Caves -3/Research History --------- Turn | Location | Event 1 | -11/Scrapyard | Upgraded with Propulsion slot (x3) 1 | -11/Scrapyard | Upgraded with Utility slot (x1) 1 | -11/Scrapyard | Upgraded with Weapon slot (x1) 1 | -11/Scrapyard | Identified exit to Materials 1 | -11/Scrapyard | Discovered exit to Materials (range 1) 29 | -11/Scrapyard | Entered Materials 212 | -10/Materials | Identified exit to Materials 212 | -10/Materials | Discovered exit to Materials (range 8) 308 | -10/Materials | Build established: Hacker-Mutant 371 | -10/Materials | Identified exit to Mines 371 | -10/Materials | Discovered exit to Mines (range 7) 378 | -10/Materials | Discovered exit to Materials (range 15) 456 | -10/Materials | Entered Mines 521 | -10/Mines | YI-UF0 nonchalantly dropped a Grenade Launcher on the ground 547 | -10/Mines | Discovered exit to Materials (range 12) 616 | -10/Mines | Discovered exit to Materials (range 7) 632 | -10/Mines | Received a Mining Laser from a helpful Derelict 671 | -10/Mines | Reached level 2 683 | -10/Mines | Upgraded with Utility slot (x1) 683 | -10/Mines | Upgraded with Weapon slot (x1) 690 | -10/Mines | Entered Materials 690 | -9/Materials | Accompanied by 1 ally 692 | -9/Materials | Reached level 3 798 | -9/Materials | Reached level 4 801 | -9/Materials | Upgraded with Weapon slot (x1) 915 | -9/Materials | Identified exit to Mines 915 | -9/Materials | Discovered exit to Mines (range 12) 987 | -9/Materials | Build established: Hacker-Gunner 1062 | -9/Materials | Reached level 5 1066 | -9/Materials | Upgraded with Power slot (x1) 1066 | -9/Materials | Upgraded with Weapon slot (x1) 1094 | -9/Materials | Destroyed 8 combat bots 1106 | -9/Materials | Crushed by falling debris 1157 | -9/Materials | Core integrity fell below 50% 1163 | -9/Materials | Identified exit to Materials 1163 | -9/Materials | Discovered exit to Materials (range 11) 1168 | -9/Materials | Entered another Materials area 1169 | -8/Materials | Core integrity fell below 50% 1170 | -8/Materials | Reached level 6 1170 | -8/Materials | Reached level 7 1304 | -8/Materials | Identified exit to Factory 1304 | -8/Materials | Discovered exit to Factory (range 16) 1313 | -8/Materials | Entered Factory 1314 | -7/Factory | Core integrity fell below 50% 1315 | -7/Factory | Reached level 8 1315 | -7/Factory | Reached level 9 1315 | -7/Factory | Reached level 10 1317 | -7/Factory | Upgraded with Propulsion slot (x1) 1317 | -7/Factory | Upgraded with Utility slot (x3) 1426 | -7/Factory | Identified exit to Factory 1426 | -7/Factory | Discovered exit to Factory (range 13) 1573 | -7/Factory | Entered another Factory area 1574 | -6/Factory | Core integrity fell below 50% 1575 | -6/Factory | Reached level 11 1575 | -6/Factory | Reached level 12 1576 | -6/Factory | Upgraded with Power slot (x1) 1576 | -6/Factory | Upgraded with Utility slot (x1) 1717 | -6/Factory | Identified exit to Lower Caves 1717 | -6/Factory | Discovered exit to Lower Caves (range 16) 1725 | -6/Factory | Entered Lower Caves 1727 | -6/Lower Caves | Reached level 13 1739 | -6/Lower Caves | Encountered a Warlord checkpoint 1845 | -6/Lower Caves | Identified exit to Lower Caves 1865 | -6/Lower Caves | Entered another Lower Caves area 1866 | -6/Lower Caves | Encountered a Warlord checkpoint 1884 | -6/Lower Caves | Identified exit to Factory 1884 | -6/Lower Caves | Discovered exit to Factory (range 16) 1893 | -6/Lower Caves | Learned Factory stockpile data 1950 | -6/Lower Caves | Entered Factory 1952 | -5/Factory | Reached level 14 1952 | -5/Factory | Reached level 15 1953 | -5/Factory | Upgraded with Utility slot (x1) 1953 | -5/Factory | Upgraded with Weapon slot (x1) 1990 | -5/Factory | Reached level 16 2061 | -5/Factory | Identified exit to Factory 2061 | -5/Factory | Discovered exit to Factory (range 15) 2086 | -5/Factory | Entered another Factory area 2088 | -4/Factory | Reached level 17 2088 | -4/Factory | Reached level 18 2088 | -4/Factory | Reached level 19 2090 | -4/Factory | Upgraded with Power slot (x1) 2090 | -4/Factory | Upgraded with Propulsion slot (x1) 2090 | -4/Factory | Upgraded with Utility slot (x1) 2243 | -4/Factory | Garrison activated, responded to threat 2260 | -4/Factory | Build established: Generator-Gladiator 2323 | -4/Factory | Reached level 20 2380 | -4/Factory | First assault squad dispatched 2544 | -4/Factory | Reached level 21 2757 | -4/Factory | Reached level 22 2815 | -4/Factory | Upgraded with Utility slot (x1) 2913 | -4/Factory | Identified exit to Upper Caves 2913 | -4/Factory | Discovered exit to Upper Caves (range 5) 2918 | -4/Factory | Entered Upper Caves 2938 | -4/Upper Caves | Reached level 23 3019 | -4/Upper Caves | Identified exit to Upper Caves 3019 | -4/Upper Caves | Discovered exit to Upper Caves (range 15) 3030 | -4/Upper Caves | Entered another Upper Caves area 3034 | -4/Upper Caves | Identified exit to Research 3034 | -4/Upper Caves | Discovered exit to Research (range 4) 3037 | -4/Upper Caves | Entered Research 3039 | -3/Research | Reached level 24 3164 | -3/Research | Reached level 25 3211 | -3/Research | Core integrity fell below 50% 3217 | -3/Research | Destroyed 7 combat bots 3287 | -3/Research | First assault squad dispatched 3304 | -3/Research | Reached level 26 3415 | -3/Research | Core integrity fell below 20% 3554 | -3/Research | Destroyed by P-80 Master with Gamma Rifle Last Messages --------------- 03502_ G-67 Veteran knocked back. 03502_ Destroyed Hpw. Tractor Beam. 03502_ Destroyed Com. Wheel. 03504_ The unstable cave ceiling collapses. 03506_ System corrupted: Component data lost. 03518_ Destroyed Electrolaser. 03518_ G-67 Veteran knocked back. 03518_ Destroyed Plasma Rifle. 03533_ O-32 Director: "IFF HANDSHAKE FAILED. SECURING TERMINAL." 03534_ K-01 Serf collects debris. 03536_ Slug penetrates Wall. 03538_ O-32 Director uses terminal to summon reinforcements. 03538_ ALERT: Hostiles spotted, dispatching reinforcements to Terminal R016. 03538_ O-32 Director locks terminal. 03539_ Slug penetrates Terminal. 03547_ Slug penetrates Wall. 03547_ K-01 Serf cleans the Terminal. 03548_ Penetrated by Slug. 03548_ Slug penetrates Wall. Map ----- +----------------------------------------------------+ | ?????????????????????????? ???????????????? "" | | ?????????????????????????? ???????????????? | | ?????????????????????????? ???????????????? | | ?????????????????????????? ???????????????? | | ?????????????????????????? ???????????????? ### | | ?????????????????????????# #?????????????????????? | | ?????????????????????????# #?????????###?????????? | | ?????????????????????????# ????????? #?????????? | | ?????????????????????????# ########??# #?????????? | | ?????????????????????????# # = #??# #?????????? | | ?????????????????????????# # #??# #?????????? | | ?????????????????????????# # [ #??# #?????????? | | ?????????????????????????# # #### #?????????? | | ?????????????????????????# # ! / #?????????? | | ?????????????????????????# + #### #???####### | | ?????????????????????????# ########### ##### | | ???????????????????????### ###?????# # | | ???????????????????????# ####### # """" | | ???????????????######### "Tk "T # ""T" | | ???????????????? ?""p "" + | | ???????????????######### # | | ???????????????????????# p ####### # ! | | ???????????????????????###/####????# # | | ???????????????????????# #????## ############ | | ???????????????????????# #?????# ??????# | | ???????????????????????# @ #?????# ??????# | | ???????????????????????# #?????# ??????# | | ???????????????????????# #?????# ??????# | | ???????????????????????# #?????????????# | | ???????????????????????########?????????????###### | | ???????????????????????????????????????########### | | ???????????????????????????????????????# # | | ???????????????????????????????????????# = + | | ???????????????????????????????????????# ! # | | ???????????????????????????????????????# # | | ???????????????????????????????????????#########?# | | ?????????????????????????????????????????????????? | | ?????????????????????????????????????????????????? | | ?????????????????????????????????????????????????? | | ?????????????????????????????????????????????????? | | ?????????????????????????????????????????????????? | | ?????????????????????????????????????????????????? | | ?????????????????????????????????????????????????? | | ?????????????????????????????????????????????????? | | ?????????????????????????????????????????????????? | | ?????????????????????????????????????????????????? | | ?????????????????????????????????????????????????? | | ?????????????????????????????????????????????????? | | ?????????????????????????????????????????????????? | | ?????????????????????????????????????????????????? | +----------------------------------------------------+ Best States ------------- Heat Dissipation 142 Energy Generation 82 Energy Capacity 975 Matter Stores 900 Matter Capacity 900 Sight Range 17 Robot Scan Range 20 Terrain Scan Density 10 Additional Mass Support 18 Armor Coverage 225 Resistance: KI 35 Resistance: TH 35 Resistance: EX 35 Resistance: EM 35 Resistance: I 35 Resistance: S 35 Resistance: P 35 Propulsion Shielding 66 Evasion (%) 67 Targeting Accuracy 5 Melee Accuracy 5 Armor Integrity Analysis 33 Recoil Reduction 1 Offensive Hacking 20 Item Schematics ----------------- Airjet | -7/Factory | Scanalyzed Robot Schematics ------------------ None Fabricated ------------ Nothing Alien Tech Used ----------------- None Achievements -------------- Deadly Force More Power To You Challenges ------------ None RPGLIKE | -11 -10 -10 -9 -8 -7 -6 -6 -6 -5 -4 -4 -4 -3 --------- Run | Scr Mat Min Mat Mat Fac Fac Low Low Fac Fac Upp Upp Res Levels Raised 25 | . . 1 3 2 3 2 1 . 3 6 1 . 3 XP Earned 44630 | 6000 850 779 5166 3454 3622 3660 999 600 4579 8696 850 349 5026 XP Spent 43410 | 5900 . 1600 4460 . 7410 3080 . . 4000 10800 . . 6160 Upgrades 72 | 9 . 2 11 . 11 4 . . 2 13 . . 20 Power Slot 3 | . . . 1 . . 1 . . . 1 . . . Propulsion Slot 5 | 3 . . . . 1 . . . . 1 . . . Utility Slot 9 | 1 . 1 . . 3 1 . . 1 2 . . . Weapon Slot 5 | 1 . 1 2 . . . . . 1 . . . . Core Integrity 14 | . . . . . . . . . . 6 . . 8 Heat Dissipation 15 | . . . 3 . 1 2 . . . . . . 9 Energy Generation 6 | . . . 1 . 1 . . . . 2 . . 2 Energy Storage 2 | . . . . . 2 . . . . . . . . Matter Storage 7 | . . . 4 . 2 . . . . 1 . . . Mass Support 1 | . . . . . 1 . . . . . . . . Inventory Capacity 4 | 4 . . . . . . . . . . . . . Sight Range 1 | . . . . . . . . . . . . . 1 Protomatter Created 1455 | . 11 . 100 101 57 18 . . 47 872 13 . 236 Integrity Restored 1979 | . . 88 102 135 78 51 . 138 141 1108 . . 138 Core 1979 | . . 88 102 135 78 51 . 138 141 1108 . . 138 Protomatter Decayed 555 | . 11 . 48 52 . . . . . 352 . . 92 Game ------ Seed DamperSmallAnalyzer Manual? 0 Play Time 01:16:32 Cumulative 13.0 hours Start 2021.08.25 @ 20:41:55 End 2021.08.25 @ 22:02:24 Sessions 1 Manual Loads 0 Difficulty Explorer Special Mode Winter2019/RPGLIKE Game No. 18 Rogue 0 Adventurer 9 Explorer 9 Win Type - Total 0 Types 0/0/0/0/0/0/0/0/0 Lore% 20 Gallery% 22 Achievement% 20 Wizard Run 0 Options --------- ASCII 0 Keyboard 0 Movement Mouse Keybinds 0 Fullscreen 1 Font 18/X11 Map View 76x50 Tactical HUD 1 Map Filters NONE Filters NONE Steam 1 RUN: 08bffad5-609c-47c4-b76f-216881c1a7c4